lending/lending_fUSD_20260102
["ID","MTS","AMOUNT","RATE_DAILY","PERIOD"]
[400338753,1767390632673,-2057.39,0.00033698,120]
[400338754,1767390632682,-534.25,0.00033817,2]
[400338756,1767390632691,-1441.23,0.00033841,2]
[400338758,1767390632700,-166.66,0.00034198,30]
[400338759,1767390632709,-2000.0,0.000342,2]
[400338761,1767390632718,-1000.0,0.00034234,2]
[400338763,1767390632727,-159.41,0.00034263,2]
[400338764,1767390632736,-6337.07688345,0.00034277,2]
[400338767,1767390632751,-564.489387,0.00034277,2]
[400338768,1767390632762,-2695.82898383,0.00034277,2]
[400338770,1767390632772,-1180.04765977,0.00034286,120]
[400338867,1767390638284,-46.71234023,0.00034286,120]
[400338868,1767390638294,-999.0,0.00034287,3]
[400338869,1767390638303,-200.0,0.00034324,2]
[400338870,1767390638313,-534.25,0.00034731,2]
[400338871,1767390638323,-220.94,0.00034817,2]
[400338872,1767390638333,-5000.0,0.00034817,2]
[400338873,1767390638343,-166.66,0.00034903,30]
[400338874,1767390638352,-150.0,0.00035004,2]
[400338875,1767390638362,-200.0,0.00035049,2]
[400338876,1767390638372,-1503.275,0.00035249,41]
[400338877,1767390638381,-783.0,0.00035499,2]
[400338878,1767390638391,-166.66,0.00035608,30]
[400338879,1767390638400,-380.89735655,0.00035616,34]
[400338880,1767390638409,-1000.0,0.0003563,2]
[400338881,1767390638419,-167.04,0.00035817,2]
[400338882,1767390638429,-4892.77635327,0.00035907,2]
[400338883,1767390638442,-500.0,0.00035945,2]
[400338884,1767390638451,-2801.7241,0.00035982,2]
[400338886,1767390638460,-2996.3066,0.00035982,2]
[400338888,1767390638470,-981.12,0.00036023,2]
[400338889,1767390638479,-5000.0,0.00036027,2]
[400338890,1767390638489,-500.0,0.00036038,15]
[400338891,1767390638499,-500.0,0.00036038,15]
[400338892,1767390638508,-500.0,0.00036038,15]
[400338893,1767390638518,-500.0,0.00036038,15]
[400338894,1767390638527,-500.0,0.00036038,15]
[400338895,1767390638537,-407.59024974,0.00036038,15]
[400338896,1767390638547,-500.0,0.00036038,15]
[400338897,1767390638556,-500.0,0.00036038,15]
[400338898,1767390638566,-500.0,0.00036038,15]
[400338899,1767390638576,-500.0,0.00036038,15]
[400338900,1767390638586,-500.0,0.00036038,15]
[400338901,1767390638595,-500.0,0.00036038,15]
[400338902,1767390638605,-500.0,0.00036038,15]
[400338903,1767390638615,-500.0,0.00036038,15]
[400338904,1767390638626,-500.0,0.00036038,15]
[400338905,1767390638636,-500.0,0.00036038,15]
[400338906,1767390638646,-500.0,0.00036038,15]
[400338907,1767390638655,-614.65687018,0.00036038,15]
[400338908,1767390638665,-5000.0,0.00036039,2]
[400338909,1767390638674,-1507.82,0.0003605,2]
[400338910,1767390638684,-5000.0,0.00036082,2]
[400338911,1767390638693,-5000.0,0.000361,2]
[400338912,1767390638704,-5000.0,0.00036127,2]
[400338913,1767390638713,-5000.0,0.00036153,2]
[400338914,1767390638723,-5000.0,0.0003621,2]
[400338915,1767390638732,-5000.0,0.00036248,2]
[400338916,1767390638742,-5000.0,0.00036277,2]
[400338917,1767390638751,-500.0,0.00036301,2]
[400338918,1767390638760,-166.66,0.00036313,30]
[400338919,1767390638770,-2558.01,0.0003633,2]
[400338920,1767390638779,-5000.0,0.00036341,2]
[400338921,1767390638788,-662.51,0.00036345,2]
[400338922,1767390638797,-5000.0,0.0003635,2]
[400338923,1767390638806,-5000.0,0.00036373,2]
[400338924,1767390638815,-5000.0,0.00036414,2]
[400338925,1767390638827,-2500.0,0.00036433,2]
[400338926,1767390638838,-4797.0,0.00036435,2]
[400338927,1767390638847,-5000.0,0.00036576,2]
[400338928,1767390638857,-5000.0,0.00036638,2]
[400338929,1767390638866,-5000.0,0.00036654,2]
[400338930,1767390638876,-5000.0,0.00036656,2]
[400338931,1767390638885,-2500.0,0.00036657,2]
[400338932,1767390638895,-1674.33,0.00036691,2]
[400338933,1767390638904,-5000.0,0.00036691,2]
[400338934,1767390638914,-158.17700131,0.00036707,15]
[400338935,1767390638924,-253.33201654,0.00036707,15]
[400338936,1767390638934,-500.0,0.00036707,15]
[400338937,1767390638944,-267.26125027,0.00036707,15]
[400338938,1767390638954,-158.13260537,0.00036707,15]
[400338939,1767390638964,-5000.0,0.00036716,2]
[400338940,1767390638974,-4495.11,0.00036742,2]
[400338941,1767390638984,-220.94,0.00036751,2]
[400338942,1767390638994,-2558.0,0.00036757,2]
[400338943,1767390639004,-726.24,0.00036759,2]
[400338944,1767390639014,-5000.0,0.00036779,2]
[400338945,1767390639024,-5000.0,0.00036808,2]
[400338946,1767390639035,-5000.0,0.00036808,2]
[400338947,1767390639048,-5000.0,0.00036829,2]
[400338948,1767390639058,-662.57,0.00036862,2]
[400338949,1767390639068,-5000.0,0.00036916,2]
[400338950,1767390639079,-5000.0,0.00036935,2]
[400338951,1767390639089,-1000.0,0.00036966,2]
[400338952,1767390639099,-5000.0,0.00036966,2]
[400338953,1767390639108,-3643.48,0.00036985,2]
[400338954,1767390639119,-166.66,0.00037018,30]
[400338955,1767390639129,-257.8,0.00037046,30]
[400338956,1767390639139,-3240.0,0.00037397,120]
[400338957,1767390639149,-1204.12895474,0.00037482,2]
[400338958,1767390639162,-604.0,0.00037482,2]
[400338959,1767390639174,-3479.17796255,0.00037482,2]
[400338960,1767390639183,-5000.0,0.00037482,2]
[400338961,1767390639192,-5000.0,0.00037482,2]
[400338962,1767390639201,-5000.0,0.00037482,2]
[400338963,1767390639211,-5000.0,0.00037482,2]
[400338964,1767390639220,-2000.0,0.000379,2]
[400338965,1767390639230,-1097.0,0.00038236,2]
[400338966,1767390639239,-1000.0,0.00038302,2]
[400338967,1767390639249,-500.0,0.00038373,20]
[400338968,1767390639259,-150.0,0.00038466,7]
[400338969,1767390639269,-150.0,0.00038466,7]
[400338970,1767390639279,-150.0,0.00038466,7]
[400338971,1767390639288,-150.0,0.00038466,7]
[400338972,1767390639298,-150.0,0.00038466,7]
[400338973,1767390639307,-150.0,0.00038466,7]
[400338974,1767390639316,-150.0,0.00038466,7]
[400338975,1767390639325,-150.0,0.00038466,7]
[400338976,1767390639335,-2044.21,0.00038669,2]
[400338977,1767390639344,-300.0,0.00038679,2]
[400338978,1767390639354,-300.0,0.00038679,2]
[400338979,1767390639364,-303.85501722,0.00038679,2]
[400338980,1767390639372,-300.0,0.00038679,2]
[400338981,1767390639382,-404.63401173,0.00038679,2]
[400338982,1767390639391,-300.0,0.00038679,2]
[400338983,1767390639400,-595.88867019,0.00038679,2]
[400338984,1767390639409,-364.48459935,0.00038679,2]
[400338985,1767390639418,-300.0,0.00038679,2]
[400338986,1767390639427,-300.0,0.00038679,2]
[400338987,1767390639437,-300.0,0.00038679,2]
[400338988,1767390639446,-300.0,0.00038679,2]
[400338989,1767390639456,-300.0,0.00038679,2]
[400338990,1767390639464,-300.0,0.00038679,2]
[400338991,1767390639474,-303.47175408,0.00038679,2]
[400338992,1767390639483,-300.0,0.00038679,2]
[400338993,1767390639492,-578.04560059,0.00038679,2]
[400338994,1767390639502,-300.0,0.00038679,2]
[400338995,1767390639511,-603.51496789,0.00038679,2]
[400338996,1767390639520,-300.0,0.00038679,2]
[400338997,1767390639529,-300.0,0.00038679,2]
[400338998,1767390639539,-300.0,0.00038679,2]
[400338999,1767390639548,-300.0,0.00038679,2]
[400339000,1767390639557,-300.0,0.00038679,2]
[400339001,1767390639566,-615.94778257,0.00038679,2]
[400339002,1767390639576,-304.64549813,0.00038679,2]
[400339003,1767390639585,-300.0,0.00038679,2]
[400339004,1767390639594,-300.0,0.00038679,2]
[400339005,1767390639603,-300.0,0.00038679,2]
[400339006,1767390639613,-300.0,0.00038679,2]
[400339007,1767390639622,-300.0,0.00038679,2]
[400339008,1767390639632,-303.85501722,0.00038679,2]
[400339009,1767390639641,-300.0,0.00038679,2]
[400339010,1767390639650,-367.65240202,0.00038679,2]
[400339011,1767390639660,-595.88867019,0.00038679,2]
[400339012,1767390639669,-364.48459935,0.00038679,2]
[400339013,1767390639679,-300.0,0.00038679,2]
[400339014,1767390639688,-300.0,0.00038679,2]
[400339015,1767390639697,-300.0,0.00038679,2]
[400339016,1767390639707,-300.0,0.00038679,2]
[400339017,1767390639716,-300.0,0.00038679,2]
[400339018,1767390639725,-300.0,0.00038679,2]
[400339019,1767390639735,-303.47175408,0.00038679,2]
[400339020,1767390639744,-320.19004811,0.00038679,2]
[400339021,1767390639753,-578.04560059,0.00038679,2]
[400339022,1767390639762,-300.0,0.00038679,2]
[400339023,1767390639771,-300.0,0.00038679,2]
[400339024,1767390639780,-300.0,0.00038679,2]
[400339025,1767390639790,-300.0,0.00038679,2]
[400339026,1767390639799,-300.0,0.00038679,2]
[400339027,1767390639810,-300.0,0.00038679,2]
[400339028,1767390639821,-615.94778257,0.00038679,2]
[400339029,1767390639830,-304.64549813,0.00038679,2]
[400339030,1767390639839,-300.0,0.00038679,2]
[400339031,1767390639850,-432.33947782,0.00038679,2]
[400339032,1767390639859,-220.94,0.00038685,2]
[400339033,1767390639869,-500.0,0.00039205,30]
[400339034,1767390639879,-150.0,0.00039205,30]
[400339035,1767390639889,-500.0,0.00039342,30]
[400339036,1767390639898,-150.0,0.00039342,30]
[400339037,1767390639908,-638.11163793,0.00039479,30]
[400339038,1767390639918,-150.0,0.00039479,30]
[400339039,1767390639928,-200.0,0.00039535,2]
[400339040,1767390639938,-207.4,0.00039535,2]
[400339041,1767390639958,-215.0738,0.00039535,2]
[400339042,1767390639968,-223.0315306,0.00039535,2]
[400339043,1767390639978,-231.28369723,0.00039535,2]
[400339044,1767390639987,-239.84119403,0.00039535,2]
[400339045,1767390639996,-248.71531821,0.00039535,2]
[400339046,1767390640006,-257.91778498,0.00039535,2]
[400339047,1767390640016,-369.74512639,0.00039535,2]
[400339048,1767390640025,-150.0,0.00039616,30]
[400339049,1767390640036,-1000.0,0.00039638,2]
[400339050,1767390640050,-286.33,0.00039654,2]
[400339051,1767390640059,-150.0,0.00039753,30]
[400339052,1767390640069,-178.39452872,0.0003989,30]
[400339053,1767390640079,-1000.0,0.000399,7]
[400339054,1767390640088,-1000.0,0.00039985,30]
[400339055,1767390640099,-1000.0,0.00039985,30]
[400339056,1767390640109,-1000.0,0.00039985,30]
[400339057,1767390640119,-1000.0,0.00039985,30]
[400339058,1767390640128,-870.827,0.00039985,30]
[400339059,1767390640138,-508.0,0.00039986,2]
[400339060,1767390640148,-1237.57017999,0.00040233,5]
[400339061,1767390640158,-451.49321932,0.00040246,30]
[400339062,1767390640167,-1000.0,0.00040267,30]
[400339063,1767390640177,-220.94,0.0004062,2]
[400339064,1767390640187,-1000.0,0.00040974,2]
[400339065,1767390640196,-508.0,0.00041039,10]
[400339066,1767390640206,-289.34,0.00041065,14]
[400339067,1767390640215,-294.43564945,0.00041096,2]
[400339068,1767390640225,-634.82892758,0.00041096,64]
[400339069,1767390640235,-500.0,0.00041098,7]
[400339070,1767390640245,-500.0,0.00041098,7]
[400339071,1767390640254,-500.0,0.00041098,7]
[400339072,1767390640264,-500.0,0.00041098,7]
[400339073,1767390640274,-500.0,0.00041098,7]
[400339074,1767390640283,-334.56312933,0.00041098,7]
[400339075,1767390640293,-165.0,0.00041185,5]
[400339076,1767390640302,-700.0,0.00041363,60]
[400339077,1767390640311,-500.0,0.00041363,60]
[400339078,1767390640321,-500.0,0.00041363,60]
[400339079,1767390640331,-257.8,0.00041372,120]
[400339080,1767390640340,-2000.0,0.000416,2]
[400339081,1767390640357,-832.0,0.00041666,11]
[400339082,1767390640368,-2000.0,0.00041693,120]
[400339083,1767390640378,-1392.534,0.00041693,120]
[400339084,1767390640387,-828.0,0.00041706,11]
[400339085,1767390640397,-2002.65822014,0.0004171,7]
[400339086,1767390640408,-167.04,0.00041729,2]
[400339087,1767390640418,-150.0,0.000418,60]
[400339088,1767390640427,-700.0,0.00041911,60]
[400339089,1767390640437,-832.0,0.00041992,16]
[400339090,1767390640446,-832.0,0.00042044,16]
[400339091,1767390640456,-508.0,0.00042092,10]
[400339092,1767390640466,-912.51,0.00042118,2]
[400339093,1767390640475,-1000.0,0.00042168,90]
[400339094,1767390640485,-700.0,0.00042459,60]
[400339095,1767390640494,-298.29040107,0.00042459,60]
[400339096,1767390640504,-500.0,0.00042459,60]
[400339097,1767390640513,-175.30133076,0.00042526,15]
[400339098,1767390640523,-170.97074391,0.00042546,8]
[400339099,1767390640533,-726.30453508,0.00042546,18]
[400339100,1767390640547,-1339.72405308,0.00042546,18]
[400339101,1767390640556,-220.94,0.00042554,2]
[400339102,1767390640565,-1057.15174,0.0004257,120]
[400339103,1767390640575,-1057.15174,0.0004257,120]
[400339104,1767390640586,-1057.15174,0.0004257,120]
[400339105,1767390640597,-1057.15174,0.0004257,120]
[400339106,1767390640607,-1057.15174,0.0004257,120]
[400339107,1767390640618,-235.84568342,0.00042626,7]
[400339108,1767390640627,-2044.21,0.00042626,2]
[400339109,1767390640636,-2044.21,0.00042626,2]
[400339110,1767390640646,-2044.21,0.00042626,2]
[400339111,1767390640656,-2044.21,0.00042626,2]
[400339112,1767390640665,-170.9707439,0.00042631,8]
[400339113,1767390640674,-150.0,0.00042633,120]
[400339114,1767390640684,-151.0,0.00042633,120]
[400339115,1767390640693,-151.0,0.00042633,120]
[400339116,1767390640702,-11366.00718529,0.00042636,2]
[400339117,1767390640713,-99717.47952287,0.00042636,2]
[400339118,1767390640726,-327585.81906912,0.00042636,2]
[400339119,1767390640737,-322244.24133709,0.00042636,2]
[400339120,1767390640748,-239086.45288563,0.00042636,2]
[400339121,1767390640758,-175.30133075,0.00042646,15]
[400339122,1767390640767,-999.0,0.00042657,120]
[400339123,1767390640778,-170.9707439,0.00042716,8]
[400339124,1767390640787,-150.0,0.0004274,30]
[400339125,1767390640796,-162.80268363,0.0004274,30]
[400339126,1767390640805,-150.0,0.0004274,30]
[400339127,1767390640814,-159.79234636,0.0004274,30]
[400339128,1767390640823,-169.70178779,0.0004274,30]
[400339129,1767390640832,-1000.0,0.00042752,14]
[400339130,1767390640842,-1000.0,0.00042765,14]
[400339131,1767390640852,-175.30133075,0.00042766,15]
[400339132,1767390641075,-242.79677594,0.0004277,14]
[400339133,1767390641091,-1000.0,0.00042784,14]
[400339134,1767390641100,-2000.0,0.00042792,3]
[400339135,1767390641112,-2000.0,0.00042792,3]
[400339136,1767390641122,-170.9707439,0.00042801,9]
[400339137,1767390641133,-241.762092,0.00042815,15]
[400339138,1767390641142,-1328.0,0.00042835,2]
[400339139,1767390641156,-3600.121,0.00042835,2]
[400339140,1767390641166,-1403.0,0.00042835,2]
[400339141,1767390641176,-613.0,0.00042835,2]
[400339142,1767390641187,-433.0,0.00042835,2]
[400339143,1767390641196,-1265.0,0.00042835,2]
[400339144,1767390641205,-250.0,0.00042835,2]
[400339145,1767390641219,-387.477,0.00042835,2]
[400339146,1767390641228,-4814.0,0.00042835,2]
[400339147,1767390641238,-6514.0,0.00042835,2]
[400339148,1767390641247,-1000.0,0.00042844,14]
[400339149,1767390641257,-4855.0,0.00042862,7]
[400339150,1767390641266,-1000.0,0.00042872,14]
[400339151,1767390641276,-175.30133075,0.00042886,15]
[400339152,1767390641285,-226.45242122,0.00042886,120]
[400339153,1767390641295,-170.9707439,0.00042886,9]
[400339154,1767390641304,-1000.0,0.000429,14]
[400339155,1767390641313,-2143.56441083,0.00042904,2]
[400339156,1767390641323,-43273.09713837,0.00042906,2]
[400339157,1767390641332,-1000.0,0.00042906,14]
[400339158,1767390641342,-1000.0,0.00042907,2]
[400339159,1767390641351,-352.06064836,0.0004291,14]
[400339160,1767390641360,-1000.0,0.00042914,14]
[400339161,1767390641369,-1000.0,0.00042938,14]
[400339162,1767390641378,-1000.0,0.00042948,14]
[400339163,1767390641388,-3155.0,0.00042957,120]
[400339164,1767390641399,-150.0,0.00042964,30]
[400339165,1767390641409,-150.0,0.00042964,30]
[400339166,1767390641418,-150.0,0.00042964,30]
[400339167,1767390641428,-800.0,0.00042965,16]
[400339168,1767390641437,-800.0,0.00042965,16]
[400339169,1767390641446,-800.0,0.00042965,16]
[400339170,1767390641456,-800.0,0.00042965,16]
[400339171,1767390641465,-800.0,0.00042965,16]
[400339172,1767390641475,-800.0,0.00042965,16]
[400339173,1767390641484,-800.0,0.00042965,16]
[400339174,1767390641493,-800.0,0.00042965,16]
[400339175,1767390641503,-1339.2,0.0004298,120]
[400339176,1767390641512,-151.0,0.00042983,120]
[400339177,1767390641522,-50000.0,0.00042985,46]
[400339178,1767390641531,-50000.0,0.00042985,47]
[400339179,1767390641541,-50000.0,0.00042985,48]
[400339180,1767390641550,-500.0,0.00042986,31]
[400339181,1767390641560,-150.0,0.00042986,120]
[400339182,1767390641569,-997784.83025472,0.00042986,7]
[400339185,1767390643460,-611.755986,0.00042835,2]
[400339186,1767390643473,-1821.244014,0.00042835,2]
[400339187,1767390643483,-2731.46248593,0.00042986,7]
[400339188,1767390643528,-12558.16716273,0.00042986,7]
[400339189,1767390644368,-151.0,0.00027212,2]
[400339190,1767390644377,-8418.47810311,0.00042886,2]
[400339191,1767390644387,-1420.45947193,0.00042986,7]
[400339193,1767390645097,-405619.61924804,0.00042986,7]
[400339194,1767390645155,-33.14879624,0.00042986,7]
[400339195,1767390645167,-1762.677248,0.00042986,7]
[400339201,1767390645723,-419.99999999,0.00042986,7]
[400339202,1767390645782,-964.8,0.00042986,7]
[400339203,1767390646095,-1041.06154848,0.00042986,7]
[400339204,1767390646109,-7227.35173432,0.00042986,7]
[400339209,1767390656201,23000.0,0.00042986,31]
[400339210,1767390661188,500.0,0.00042986,120]
[400339211,1767390789935,500.0,0.00016973,2]
[400339212,1767390790832,300.0,0.00017999,2]
[400339213,1767390799649,500.0,0.00016973,2]
[400339214,1767390802654,500.0,0.00016973,2]
[400339215,1767390805398,500.0,0.00016973,2]
[400339216,1767390805682,500.0,0.00016973,2]
[400339217,1767390846326,500.0,0.00016973,2]
[400339218,1767390907601,2438.61076695,0.00042986,120]
[400339219,1767390961409,500.0,0.00042986,120]
[400339220,1767390968778,150.0,0.00042986,120]
[400339221,1767391024480,500.0,0.00016973,2]
[400339222,1767391034158,50000.0,0.00042986,34]
[400339223,1767391038508,50000.0,0.00042986,36]
[400339224,1767391044161,50000.0,0.00042986,37]
[400339225,1767391075274,500.0,0.00030599,120]
[400339226,1767391075522,500.0,0.00030599,120]
[400339227,1767391075786,500.0,0.00032624,120]
[400339228,1767391076020,500.0,0.00032624,120]
[400339229,1767391086949,228.62717376,0.00016973,2]
[400339230,1767391143283,500.0,0.00016973,2]
[400339231,1767391262158,500.0,0.00043006,120]
[400339232,1767391289649,5000.0,0.00032876,120]
[400339233,1767391419114,6390.95532863,0.00043006,30]
[400339234,1767391428847,164.83,0.00016712,2]
[400339235,1767391449790,-198.56955432,0.00020285,2]
[400339236,1767391449811,-300.0,0.00020286,2]
[400339237,1767391449833,-142.92665355,0.00020286,2]
[400339238,1767391451838,-102.23033282,0.00020286,2]
[400339239,1767391451860,-79.38744345,0.00020286,2]
[400339240,1767391486372,509.38639813,0.00030488,120]
[400339241,1767391512144,500.0,0.00030498,120]
[400339242,1767391512390,500.0,0.00030498,120]
[400339243,1767391559618,713.48,0.00029396,120]
[400339244,1767391560830,500.0,0.00043006,120]
[400339245,1767391686752,209.41331503,0.00016973,2]
[400339246,1767391751625,300.0,0.00017999,2]
[400339247,1767391765269,-283.91664888,0.00020286,2]
[400339248,1767391768474,-16.08335112,0.00020286,2]
[400339249,1767391768499,-149.28664888,0.00020286,2]
[400339250,1767391796413,1152.0,0.00029218,120]
[400339251,1767391796635,1152.0,0.00032871,120]
[400339258,1767391831903,-300.0,0.00022315,2]
[400339260,1767391831912,-250.0,0.00022315,2]
[400339263,1767391831926,-250.0,0.00022315,2]
[400339265,1767391831936,-214.02545008,0.00022672,2]
[400339266,1767391831948,-85.97454992,0.00022672,2]
[400339267,1767391831958,-250.0,0.00024546,2]
[400339268,1767391831967,-300.0,0.00024999,10]
[400339269,1767391831977,-151.0,0.00025027,2]
[400339270,1767391831986,-151.0,0.00025027,2]
[400339271,1767391831995,-198.56955432,0.00025059,2]
[400339272,1767391832004,-1200.0,0.00026137,2]
[400339273,1767391832014,-1200.0,0.00026137,2]
[400339274,1767391832023,-300.0,0.00026137,2]
[400339275,1767391832032,-10356.48,0.00026138,2]
[400339276,1767391832041,-623.44,0.00027244,2]
[400339277,1767391832050,-420.0,0.00028282,2]
[400339278,1767391832060,-1680.0,0.00028408,2]
[400339279,1767391832069,-1144.07,0.00028489,2]
[400339280,1767391832078,-1304.95,0.00028931,2]
[400339281,1767391832088,-1177.4,0.00029815,2]
[400339282,1767391832097,-999.99,0.00029815,2]
[400339283,1767391832106,-3171.76,0.00029815,2]
[400339284,1767391832115,-151.88196593,0.00030192,2]
[400339285,1767391832125,-151.0,0.00030297,7]
[400339286,1767391832134,-8544.47322575,0.00030299,2]
[400339288,1767391832144,-6512.92971246,0.00030299,2]
[400339290,1767391832154,-300.69340349,0.00030299,2]
[400339292,1767391832163,-500.0,0.00030299,2]
[400339294,1767391832173,-228.59178214,0.00030299,2]
[400339296,1767391832182,-202686.18496914,0.000303,2]
[400339298,1767391832193,-6824.07148996,0.000303,2]
[400339299,1767391832205,-105727.31793354,0.000303,2]
[400339301,1767391832216,-26728.34683869,0.000303,2]
[400339304,1767391832227,-335.26580545,0.000303,2]
[400339307,1767391832246,-364.62612904,0.00030299,2]
[400339308,1767391832255,-4486.59076596,0.000303,2]
[400339311,1767391832267,-284.77163,0.000303,2]
[400339313,1767391832278,-999.67682255,0.000303,2]
[400339316,1767391832290,-2225.9,0.000303,2]
[400339320,1767391832301,-7805.35260329,0.000303,2]
[400339347,1767391837992,-356.0188694,0.00030299,2]
[400339348,1767391838051,-143.9811306,0.00030299,2]
[400339349,1767391838060,-480.1528694,0.00030299,2]
[400339350,1767391838072,-19.8471306,0.00030299,2]
[400339351,1767391838081,-500.0,0.00030299,2]
[400339352,1767391838091,-500.0,0.00030299,2]
[400339353,1767391838108,-500.0,0.00030299,2]
[400339354,1767391838117,-130.1528694,0.00030299,2]
[400339355,1767391838131,-369.8471306,0.00030299,2]
[400339356,1767391838140,-500.0,0.00030299,2]
[400339357,1767391838150,-500.0,0.00030299,2]
[400339358,1767391838160,-500.0,0.00030299,2]
[400339359,1767391838170,-500.0,0.00030299,2]
[400339360,1767391838179,-500.0,0.00030299,2]
[400339361,1767391838189,-500.0,0.00030299,2]
[400339362,1767391838202,-500.0,0.00030299,2]
[400339363,1767391838212,-451.92704405,0.00030299,2]
[400339364,1767391838222,-500.0,0.00030299,2]
[400339365,1767391838231,-500.0,0.00030299,2]
[400339366,1767391838242,-500.0,0.00030299,2]
[400339367,1767391838252,-500.0,0.00030299,2]
[400339368,1767391838261,-500.0,0.00030299,2]
[400339369,1767391838271,-500.0,0.00030299,2]
[400339370,1767391838280,-500.0,0.00030299,2]
[400339371,1767391838290,-500.0,0.00030299,2]
[400339372,1767391838299,-500.0,0.00030299,2]
[400339373,1767391838309,-500.0,0.00030299,2]
[400339374,1767391838318,-500.0,0.00030299,2]
[400339375,1767391838328,-500.0,0.00030299,2]
[400339376,1767391838338,-500.0,0.00030299,2]
[400339377,1767391838352,-500.0,0.00030299,2]
[400339378,1767391838363,-500.0,0.00030299,2]
[400339379,1767391838374,-500.0,0.00030299,2]
[400339380,1767391838385,-500.0,0.00030299,2]
[400339381,1767391838396,-526.61937413,0.00030299,2]
[400339382,1767391838407,-500.0,0.00030299,2]
[400339383,1767391838418,-500.0,0.00030299,2]
[400339384,1767391838428,-3728.57432926,0.000303,2]
[400339385,1767391838441,-593.27536952,0.000303,2]
[400339386,1767391838453,-2006.24999946,0.000303,2]
[400339387,1767391838464,-722.46490153,0.000303,2]
[400339389,1767391838477,-3120.63070504,0.000303,2]
[400339391,1767391838489,-478.95997779,0.000303,2]
[400339393,1767391838501,-1606.27709656,0.000303,2]
[400339394,1767391838513,-778.58817429,0.000303,2]
[400339395,1767391838524,-1086.8797393,0.000303,2]
[400339460,1767391840065,-386.49005528,0.000303,2]
[400339461,1767391840077,-1219.4810845,0.000303,2]
[400339462,1767391840125,-626168.64970889,0.000303,2]
[400339463,1767391840136,-2500.0,0.00030399,2]
[400339464,1767391840146,-188.6472231,0.000304,2]
[400339465,1767391840156,-218.85247735,0.00030421,2]
[400339466,1767391840166,-688.0,0.00030478,2]
[400339467,1767391840175,-36627.7764925,0.00030479,3]
[400339468,1767391840184,-359.87,0.00030479,3]
[400339469,1767391840193,-151.0,0.00030486,7]
[400339470,1767391840203,-345.98,0.00030488,14]
[400339471,1767391840213,-29302.221194,0.00030488,3]
[400339472,1767391840222,-13328.53627954,0.00030489,3]
[400339473,1767391840233,-443.58598797,0.00030489,3]
[400339474,1767391840244,-700.0,0.00030489,3]
[400339475,1767391840255,-57321.63059446,0.00030489,3]
[400339476,1767391840293,-474.61882555,0.00030489,3]
[400339477,1767391840305,-533.10831285,0.00030489,3]
[400339478,1767391840317,-500.0,0.00030489,3]
[400339479,1767391840328,-448.65345497,0.00030489,3]
[400339480,1767391840339,-801.50537532,0.00030489,3]
[400339481,1767391840353,-394.95440656,0.00030489,3]
[400339482,1767391840364,-3212.50063919,0.00030489,3]
[400339483,1767391840376,-1387.09606215,0.00030489,3]
[400339484,1767391840388,-801.04957216,0.00030489,3]
[400339485,1767391840400,-2732.7300008,0.00030489,3]
[400339486,1767391840412,-1588.82115271,0.00030489,3]
[400339487,1767391840424,-4100.14865549,0.00030489,3]
[400339488,1767391840436,-959.37255751,0.00030489,3]
[400339489,1767391840478,-123641.20355682,0.00030489,3]
[400339490,1767391840489,-446.54502388,0.00030489,3]
[400339491,1767391840501,-152461.70446707,0.00030489,3]